[Event "Titled Tuesday Blitz August 1 Late 2023"]
[White "Vifleemskaia, Svetlana"]
[Black "Sivakumar, Shaashwath"]
[WhiteFideId "4129490"]
[BlackFideId "30912156"]
[WhiteElo "2379"]
[BlackElo "2582"]
[Result "1-0"]
[Round "8"]
[TimeControl "180+1"]
[Date "2023.08.01"]
[WhiteClock "0:00:19"]
[BlackClock "0:00:47"]
[Board "80"]

1. d4 {[%clk 0:03:00]}  d5 {[%clk 0:02:59]} 2. c4 {[%clk 0:03:00]}  c6 {[%clk 0:02:59]} 3. cxd5 {[%clk 0:03:00]}  cxd5 {[%clk 0:02:59]} 4. Bf4 {[%clk 0:03:01]}  Nc6 {[%clk 0:02:58]} 5. e3 {[%clk 0:03:01]}  f6 {[%clk 0:02:57]} 6. Nc3 {[%clk 0:02:59]}  e5 {[%clk 0:02:56]} 7. dxe5 {[%clk 0:02:54]}  fxe5 {[%clk 0:02:57]} 8. Bg3 {[%clk 0:02:30]}  Nf6 {[%clk 0:02:52]} 9. Nf3 {[%clk 0:02:24]}  d4 {[%clk 0:02:49]} 10. exd4 {[%clk 0:02:21]}  exd4 {[%clk 0:02:50]} 11. Qe2+ {[%clk 0:02:15]}  Be7 {[%clk 0:02:47]} 12. O-O-O {[%clk 0:02:04]}  O-O {[%clk 0:02:45]} 13. Qc4+ {[%clk 0:02:02]}  Kh8 {[%clk 0:02:45]} 14. Nxd4 {[%clk 0:02:02]}  Qb6 {[%clk 0:02:41]} 15. Qb5 {[%clk 0:01:27]}  Nxd4 {[%clk 0:02:39]} 16. Qxb6 {[%clk 0:01:27]}  axb6 {[%clk 0:02:40]} 17. Rxd4 {[%clk 0:01:26]}  Bc5 {[%clk 0:02:40]} 18. Rd2 {[%clk 0:01:22]}  Bf5 {[%clk 0:02:39]} 19. Bd3 {[%clk 0:01:20]}  Be6 {[%clk 0:02:35]} 20. a3 {[%clk 0:01:13]}  Ng4 {[%clk 0:02:26]} 21. Ne4 {[%clk 0:01:05]}  Bd4 {[%clk 0:02:26]} 22. h3 {[%clk 0:01:02]}  Rfc8+ {[%clk 0:02:19]} 23. Kb1 {[%clk 0:00:53]}  Ne5 {[%clk 0:02:06]} 24. Bc2 {[%clk 0:00:53]}  Nc6 {[%clk 0:02:04]} 25. Nd6 {[%clk 0:00:46]}  Rd8 {[%clk 0:01:55]} 26. Nf5 {[%clk 0:00:40]}  Bxf5 {[%clk 0:01:20]} 27. Bxf5 {[%clk 0:00:39]}  Rf8 {[%clk 0:01:21]} 28. Be4 {[%clk 0:00:35]}  Bc5 {[%clk 0:01:20]} 29. Rhd1 {[%clk 0:00:33]}  Na5 {[%clk 0:01:17]} 30. Bd5 {[%clk 0:00:31]}  h6 {[%clk 0:01:12]} 31. b4 {[%clk 0:00:29]}  Nc6 {[%clk 0:00:52]} 32. bxc5 {[%clk 0:00:28]}  Rxa3 {[%clk 0:00:50]} 33. Bxc6 {[%clk 0:00:20]}  bxc6 {[%clk 0:00:48]} 34. cxb6 {[%clk 0:00:20]}  Kh7 {[%clk 0:00:47]} 35. Rb2 {[%clk 0:00:19]}  Rfa8 {[%clk 0:00:46]} 36. b7 {[%clk 0:00:18]}  Ra1+ {[%clk 0:00:46]} 37. Kc2 {[%clk 0:00:19]}  Rxd1 {[%clk 0:00:47]} 38. Kxd1 {[%clk 0:00:19]}  Rd8+ {[%clk 0:00:47]} 39. Kc2 {[%clk 0:00:19]}  Rd5 {[%clk 0:00:46]} 40. b8=Q {[%clk 0:00:19]}  Rc5+ {[%clk 0:00:47]} 41. Kd3 {[%clk 0:00:19]} 1-0


[Site "https://www.chess.com"]

[Event "Titled Tuesday Blitz August 1 Late 2023"]
[White "Perez, Maximiliano"]
[Black "Bach, Matthias"]
[WhiteFideId "117234"]
[BlackFideId "4603168"]
[WhiteElo "2547"]
[BlackElo "2373"]
[Result "1-0"]
[Round "8"]
[TimeControl "180+1"]
[Date "2023.08.01"]
[WhiteClock "0:00:16"]
[BlackClock "0:00:02"]
[Board "81"]

1. e4 {[%clk 0:03:00]}  e5 {[%clk 0:02:56]} 2. Nf3 {[%clk 0:03:00]}  Nc6 {[%clk 0:02:55]} 3. Bc4 {[%clk 0:03:00]}  Nf6 {[%clk 0:02:55]} 4. d3 {[%clk 0:03:00]}  d6 {[%clk 0:02:53]} 5. O-O {[%clk 0:02:59]}  Be6 {[%clk 0:02:53]} 6. Bxe6 {[%clk 0:02:51]}  fxe6 {[%clk 0:02:53]} 7. c3 {[%clk 0:02:52]}  Qd7 {[%clk 0:02:50]} 8. b4 {[%clk 0:02:47]}  Be7 {[%clk 0:02:49]} 9. Nbd2 {[%clk 0:02:43]}  O-O {[%clk 0:02:48]} 10. a4 {[%clk 0:02:43]}  Nd8 {[%clk 0:02:34]} 11. a5 {[%clk 0:02:38]}  a6 {[%clk 0:02:30]} 12. c4 {[%clk 0:02:31]}  Nf7 {[%clk 0:02:28]} 13. Bb2 {[%clk 0:02:29]}  Nh5 {[%clk 0:02:27]} 14. g3 {[%clk 0:02:10]}  g6 {[%clk 0:02:07]} 15. d4 {[%clk 0:02:00]}  exd4 {[%clk 0:02:06]} 16. Nxd4 {[%clk 0:01:57]}  e5 {[%clk 0:02:04]} 17. N4f3 {[%clk 0:01:35]}  Bg5 {[%clk 0:01:51]} 18. Kg2 {[%clk 0:01:26]}  Qg4 {[%clk 0:01:40]} 19. Nxg5 {[%clk 0:01:24]}  Qxg5 {[%clk 0:01:38]} 20. Nf3 {[%clk 0:01:19]}  Qg4 {[%clk 0:01:35]} 21. Nd2 {[%clk 0:01:05]}  Nf4+ {[%clk 0:01:22]} 22. Kh1 {[%clk 0:00:59]}  Ne2 {[%clk 0:01:14]} 23. Re1 {[%clk 0:00:34]}  Nxg3+ {[%clk 0:01:04]} 24. fxg3 {[%clk 0:00:26]}  Qh3 {[%clk 0:01:03]} 25. Qf3 {[%clk 0:00:27]}  Ng5 {[%clk 0:00:55]} 26. Qg2 {[%clk 0:00:27]}  Qh5 {[%clk 0:00:55]} 27. Rf1 {[%clk 0:00:27]}  Nh3 {[%clk 0:00:48]} 28. Nf3 {[%clk 0:00:23]}  Rf7 {[%clk 0:00:44]} 29. Ng1 {[%clk 0:00:23]}  Ng5 {[%clk 0:00:40]} 30. Rxf7 {[%clk 0:00:22]}  Nxf7 {[%clk 0:00:40]} 31. Rf1 {[%clk 0:00:22]}  Ng5 {[%clk 0:00:39]} 32. Bc1 {[%clk 0:00:20]}  Ne6 {[%clk 0:00:38]} 33. Qf3 {[%clk 0:00:19]}  Qxf3+ {[%clk 0:00:32]} 34. Nxf3 {[%clk 0:00:20]}  Rf8 {[%clk 0:00:27]} 35. Kg2 {[%clk 0:00:20]}  Kg7 {[%clk 0:00:24]} 36. Be3 {[%clk 0:00:20]}  h6 {[%clk 0:00:23]} 37. Nd2 {[%clk 0:00:19]}  Re8 {[%clk 0:00:22]} 38. Nb1 {[%clk 0:00:19]}  g5 {[%clk 0:00:19]} 39. Nc3 {[%clk 0:00:20]}  c6 {[%clk 0:00:17]} 40. Rd1 {[%clk 0:00:20]}  Rd8 {[%clk 0:00:17]} 41. c5 {[%clk 0:00:19]}  dxc5 {[%clk 0:00:11]} 42. Rxd8 {[%clk 0:00:19]}  Nxd8 {[%clk 0:00:11]} 43. Bxc5 {[%clk 0:00:19]}  Ne6 {[%clk 0:00:10]} 44. Na4 {[%clk 0:00:18]}  Kf7 {[%clk 0:00:08]} 45. Kf3 {[%clk 0:00:18]}  Ke8 {[%clk 0:00:06]} 46. Be3 {[%clk 0:00:16]}  Nc7 {[%clk 0:00:05]} 47. Nc5 {[%clk 0:00:16]}  Nb5 {[%clk 0:00:02]} 48. Nxb7 {[%clk 0:00:16]} 1-0


[Site "https://www.chess.com"]

[Event "Titled Tuesday Blitz August 1 Late 2023"]
[White "Vovk, Orest"]
[Black "Elissalt Cardenas, Hector"]
[WhiteFideId "14113490"]
[BlackFideId "3500632"]
[WhiteElo "2513"]
[BlackElo "2361"]
[Result "1-0"]
[Round "8"]
[TimeControl "180+1"]
[Date "2023.08.01"]
[WhiteClock "0:00:28"]
[BlackClock "0:00:06"]
[Board "84"]

1. h4 {[%clk 0:02:51]}  h5 {[%clk 0:02:56]} 2. Nf3 {[%clk 0:02:50]}  Nf6 {[%clk 0:02:54]} 3. Ng5 {[%clk 0:02:45]}  Nc6 {[%clk 0:02:52]} 4. e4 {[%clk 0:02:45]}  e5 {[%clk 0:02:51]} 5. Bc4 {[%clk 0:02:44]}  d5 {[%clk 0:02:44]} 6. exd5 {[%clk 0:02:42]}  Nxd5 {[%clk 0:02:24]} 7. Nxf7 {[%clk 0:02:41]}  Kxf7 {[%clk 0:02:23]} 8. Qf3+ {[%clk 0:02:40]}  Ke6 {[%clk 0:02:23]} 9. Nc3 {[%clk 0:02:40]}  Ne7 {[%clk 0:02:21]} 10. Ne4 {[%clk 0:02:38]}  c6 {[%clk 0:02:18]} 11. d4 {[%clk 0:02:28]}  Kd7 {[%clk 0:01:54]} 12. dxe5 {[%clk 0:02:20]}  g6 {[%clk 0:01:21]} 13. Bg5 {[%clk 0:02:10]}  Qa5+ {[%clk 0:01:18]} 14. c3 {[%clk 0:02:08]}  Kc7 {[%clk 0:01:16]} 15. O-O-O {[%clk 0:02:06]}  Be6 {[%clk 0:01:16]} 16. Nd6 {[%clk 0:01:53]}  Nf5 {[%clk 0:01:05]} 17. Nxf5 {[%clk 0:01:36]}  gxf5 {[%clk 0:01:04]} 18. Bxd5 {[%clk 0:01:18]}  cxd5 {[%clk 0:01:01]} 19. Bf6 {[%clk 0:01:14]}  Rh7 {[%clk 0:00:59]} 20. Qg3 {[%clk 0:01:11]}  Rc8 {[%clk 0:00:52]} 21. Qg6 {[%clk 0:01:10]}  Rd7 {[%clk 0:00:50]} 22. Bg5 {[%clk 0:01:03]}  Bf7 {[%clk 0:00:32]} 23. Qxf5 {[%clk 0:00:58]}  Qxa2 {[%clk 0:00:27]} 24. e6 {[%clk 0:00:51]}  Bxe6 {[%clk 0:00:20]} 25. Qxe6 {[%clk 0:00:47]}  Rd6 {[%clk 0:00:18]} 26. Bf4 {[%clk 0:00:44]}  Kb6 {[%clk 0:00:15]} 27. Qe3+ {[%clk 0:00:42]}  Ka6 {[%clk 0:00:14]} 28. Bxd6 {[%clk 0:00:37]}  Bxd6 {[%clk 0:00:14]} 29. Kc2 {[%clk 0:00:33]}  Qa4+ {[%clk 0:00:13]} 30. Kb1 {[%clk 0:00:31]}  Qb3 {[%clk 0:00:11]} 31. Qd3+ {[%clk 0:00:30]}  b5 {[%clk 0:00:06]} 32. Qxd5 {[%clk 0:00:28]} 1-0


[Site "https://www.chess.com"]

[Event "Titled Tuesday Blitz August 1 Late 2023"]
[White "Altman, Joshua"]
[Black "Topalov, Aleksandar"]
[WhiteFideId "426210"]
[BlackFideId "925659"]
[WhiteElo "2506"]
[BlackElo "2352"]
[Result "1-0"]
[Round "8"]
[TimeControl "180+1"]
[Date "2023.08.01"]
[WhiteClock "0:02:31"]
[BlackClock "0:01:40"]
[Board "87"]

1. Nf3 {[%clk 0:03:00]}  f5 {[%clk 0:02:59]} 2. d4 {[%clk 0:02:57]}  Nf6 {[%clk 0:02:58]} 3. Nc3 {[%clk 0:02:56]}  d5 {[%clk 0:02:47]} 4. Bg5 {[%clk 0:02:55]}  e6 {[%clk 0:02:44]} 5. e3 {[%clk 0:02:52]}  Bd6 {[%clk 0:02:43]} 6. Bd3 {[%clk 0:02:51]}  O-O {[%clk 0:02:43]} 7. O-O {[%clk 0:02:43]}  b6 {[%clk 0:02:43]} 8. Ne2 {[%clk 0:02:42]}  Ba6 {[%clk 0:02:41]} 9. Bxa6 {[%clk 0:02:41]}  Nxa6 {[%clk 0:02:41]} 10. Rc1 {[%clk 0:02:40]}  c6 {[%clk 0:02:28]} 11. c4 {[%clk 0:02:39]}  Nc7 {[%clk 0:02:13]} 12. c5 {[%clk 0:02:36]}  bxc5 {[%clk 0:02:11]} 13. dxc5 {[%clk 0:02:37]}  Be7 {[%clk 0:02:09]} 14. Ned4 {[%clk 0:02:36]}  Qd7 {[%clk 0:02:06]} 15. Ne5 {[%clk 0:02:36]}  Qe8 {[%clk 0:02:01]} 16. Nexc6 {[%clk 0:02:34]}  h6 {[%clk 0:01:40]} 17. Bf4 {[%clk 0:02:31]} 1-0


[Site "https://www.chess.com"]

[Event "Titled Tuesday Blitz August 1 Late 2023"]
[White "Zilleruelo Irizarry, Diego"]
[Black "Sanhueza, Cristian"]
[WhiteFideId "3101460"]
[BlackFideId "116815"]
[WhiteElo "2342"]
[BlackElo "2477"]
[Result "0-1"]
[Round "8"]
[TimeControl "180+1"]
[Date "2023.08.01"]
[WhiteClock "0:00:00"]
[BlackClock "0:00:02"]
[Board "89"]

1. e4 {[%clk 0:02:52]}  c5 {[%clk 0:02:58]} 2. Nf3 {[%clk 0:02:53]}  d6 {[%clk 0:02:58]} 3. d4 {[%clk 0:02:53]}  cxd4 {[%clk 0:02:59]} 4. Qxd4 {[%clk 0:02:53]}  Nc6 {[%clk 0:02:56]} 5. Qe3 {[%clk 0:02:53]}  Nf6 {[%clk 0:02:54]} 6. Be2 {[%clk 0:02:50]}  e5 {[%clk 0:02:50]} 7. h3 {[%clk 0:02:48]}  Be7 {[%clk 0:02:51]} 8. O-O {[%clk 0:02:48]}  O-O {[%clk 0:02:51]} 9. Rd1 {[%clk 0:02:49]}  Be6 {[%clk 0:02:50]} 10. c4 {[%clk 0:02:49]}  Nb4 {[%clk 0:02:34]} 11. Qd2 {[%clk 0:02:43]}  a5 {[%clk 0:02:29]} 12. Nc3 {[%clk 0:02:42]}  Na6 {[%clk 0:02:07]} 13. Qe3 {[%clk 0:02:36]}  Nb4 {[%clk 0:01:54]} 14. Rd2 {[%clk 0:02:19]}  Qc8 {[%clk 0:01:46]} 15. a3 {[%clk 0:02:16]}  Na6 {[%clk 0:01:41]} 16. Nd5 {[%clk 0:01:55]}  Bxd5 {[%clk 0:01:37]} 17. exd5 {[%clk 0:01:49]}  a4 {[%clk 0:01:31]} 18. Rc2 {[%clk 0:01:44]}  Nc5 {[%clk 0:01:31]} 19. Bd2 {[%clk 0:01:38]}  Nfe4 {[%clk 0:01:29]} 20. Bb4 {[%clk 0:01:28]}  f5 {[%clk 0:01:26]} 21. Bd3 {[%clk 0:01:04]}  Bf6 {[%clk 0:01:00]} 22. Bxe4 {[%clk 0:00:52]}  Nxe4 {[%clk 0:00:57]} 23. c5 {[%clk 0:00:45]}  dxc5 {[%clk 0:00:43]} 24. Bxc5 {[%clk 0:00:44]}  b6 {[%clk 0:00:34]} 25. Bxf8 {[%clk 0:00:22]}  Qxc2 {[%clk 0:00:32]} 26. Rc1 {[%clk 0:00:19]}  Qxb2 {[%clk 0:00:27]} 27. Bb4 {[%clk 0:00:19]}  f4 {[%clk 0:00:26]} 28. Qe1 {[%clk 0:00:10]}  Ng5 {[%clk 0:00:10]} 29. Nxg5 {[%clk 0:00:05]}  Bxg5 {[%clk 0:00:11]} 30. Rc7 {[%clk 0:00:05]}  Bf6 {[%clk 0:00:08]} 31. d6 {[%clk 0:00:05]}  Rd8 {[%clk 0:00:07]} 32. Qe4 {[%clk 0:00:04]}  Qd4 {[%clk 0:00:06]} 33. Qb7 {[%clk 0:00:03]}  Qd1+ {[%clk 0:00:03]} 34. Kh2 {[%clk 0:00:04]}  f3 {[%clk 0:00:03]} 35. g3 {[%clk 0:00:03]}  Qe2 {[%clk 0:00:02]} 36. Kg1 {[%clk 0:00:00]}  e4 {[%clk 0:00:02]} 0-1


[Site "https://www.chess.com"]

[Event "Titled Tuesday Blitz August 1 Late 2023"]
[White "Vasques, Antonio Pedro Freixial"]
[Black "Gaal, Zsoka"]
[WhiteFideId "1908332"]
[BlackFideId "777765"]
[WhiteElo "2328"]
[BlackElo "2455"]
[Result "0-1"]
[Round "8"]
[TimeControl "180+1"]
[Date "2023.08.01"]
[WhiteClock "0:02:08"]
[BlackClock "0:01:55"]
[Board "90"]

1. e4 {[%clk 0:02:57]}  c6 {[%clk 0:02:54]} 2. d4 {[%clk 0:02:56]}  g6 {[%clk 0:02:54]} 3. f4 {[%clk 0:02:55]}  d5 {[%clk 0:02:49]} 4. e5 {[%clk 0:02:54]}  h5 {[%clk 0:02:48]} 5. Bd3 {[%clk 0:02:53]}  Nh6 {[%clk 0:02:48]} 6. c4 {[%clk 0:02:42]}  Bf5 {[%clk 0:02:42]} 7. Nf3 {[%clk 0:02:41]}  e6 {[%clk 0:02:40]} 8. Nc3 {[%clk 0:02:40]}  Be7 {[%clk 0:02:20]} 9. Be3 {[%clk 0:02:22]}  h4 {[%clk 0:01:58]} 10. cxd5 {[%clk 0:02:19]}  cxd5 {[%clk 0:01:58]} 11. Qb3 {[%clk 0:02:08]}  Bxd3 {[%clk 0:01:55]} 0-1


[Site "https://www.chess.com"]

[Event "Titled Tuesday Blitz August 1 Late 2023"]
[White "Ardila, Oscar Humberto"]
[Black "Urbina Perez, Juan Antonio"]
[WhiteFideId "4404742"]
[BlackFideId "2217368"]
[WhiteElo "2319"]
[BlackElo "2450"]
[Result "1-0"]
[Round "8"]
[TimeControl "180+1"]
[Date "2023.08.01"]
[WhiteClock "0:00:33"]
[BlackClock "0:00:35"]
[Board "92"]

1. d4 {[%clk 0:02:57]}  d5 {[%clk 0:02:58]} 2. Nf3 {[%clk 0:02:54]}  Nf6 {[%clk 0:02:58]} 3. g3 {[%clk 0:02:53]}  c6 {[%clk 0:02:54]} 4. Bg2 {[%clk 0:02:53]}  Bf5 {[%clk 0:02:55]} 5. O-O {[%clk 0:02:54]}  e6 {[%clk 0:02:55]} 6. c3 {[%clk 0:02:54]}  h6 {[%clk 0:02:56]} 7. Nbd2 {[%clk 0:02:54]}  Nbd7 {[%clk 0:02:56]} 8. Re1 {[%clk 0:02:54]}  Ne4 {[%clk 0:02:55]} 9. Nxe4 {[%clk 0:02:54]}  Bxe4 {[%clk 0:02:55]} 10. b3 {[%clk 0:02:53]}  Bd6 {[%clk 0:02:55]} 11. Bb2 {[%clk 0:02:53]}  O-O {[%clk 0:02:54]} 12. Rc1 {[%clk 0:02:53]}  Qe7 {[%clk 0:02:54]} 13. Qd2 {[%clk 0:02:50]}  Ba3 {[%clk 0:02:51]} 14. Bxa3 {[%clk 0:02:46]}  Qxa3 {[%clk 0:02:52]} 15. Nh4 {[%clk 0:02:20]}  Bxg2 {[%clk 0:02:52]} 16. Nxg2 {[%clk 0:02:20]}  c5 {[%clk 0:02:45]} 17. e3 {[%clk 0:02:14]}  Rac8 {[%clk 0:02:43]} 18. Nf4 {[%clk 0:02:13]}  Rc7 {[%clk 0:02:38]} 19. Nd3 {[%clk 0:02:13]}  Rfc8 {[%clk 0:02:33]} 20. h4 {[%clk 0:01:57]}  cxd4 {[%clk 0:02:31]} 21. exd4 {[%clk 0:01:57]}  Nf6 {[%clk 0:02:31]} 22. f3 {[%clk 0:01:57]}  Qd6 {[%clk 0:02:28]} 23. Ne5 {[%clk 0:01:54]}  Nd7 {[%clk 0:02:24]} 24. f4 {[%clk 0:01:52]}  Nf6 {[%clk 0:02:11]} 25. c4 {[%clk 0:01:40]}  b6 {[%clk 0:02:09]} 26. Qe3 {[%clk 0:01:24]}  dxc4 {[%clk 0:01:57]} 27. bxc4 {[%clk 0:01:24]}  Rd8 {[%clk 0:01:56]} 28. Red1 {[%clk 0:01:24]}  Nd7 {[%clk 0:01:48]} 29. Kh2 {[%clk 0:01:21]}  Nxe5 {[%clk 0:01:43]} 30. fxe5 {[%clk 0:01:22]}  Qb4 {[%clk 0:01:43]} 31. Qe2 {[%clk 0:01:05]}  Rcd7 {[%clk 0:01:37]} 32. Qf2 {[%clk 0:01:02]}  Qe7 {[%clk 0:01:27]} 33. Rd3 {[%clk 0:00:54]}  f5 {[%clk 0:01:08]} 34. Rcd1 {[%clk 0:00:50]}  g5 {[%clk 0:01:04]} 35. d5 {[%clk 0:00:46]}  gxh4 {[%clk 0:00:54]} 36. gxh4 {[%clk 0:00:46]}  exd5 {[%clk 0:00:53]} 37. cxd5 {[%clk 0:00:45]}  Qxe5+ {[%clk 0:00:49]} 38. Kh1 {[%clk 0:00:37]}  Rxd5 {[%clk 0:00:49]} 39. Qg2+ {[%clk 0:00:37]}  Kh7 {[%clk 0:00:40]} 40. Rxd5 {[%clk 0:00:37]}  Rxd5 {[%clk 0:00:40]} 41. Qxd5 {[%clk 0:00:36]}  Qg3 {[%clk 0:00:38]} 42. Qxf5+ {[%clk 0:00:36]}  Kh8 {[%clk 0:00:35]} 43. Qf6+ {[%clk 0:00:33]} 1-0


[Site "https://www.chess.com"]

[Event "Titled Tuesday Blitz August 1 Late 2023"]
[White "Gabdushev, Ruslan"]
[Black "Harish, Neeraj"]
[WhiteFideId "4137833"]
[BlackFideId "30958130"]
[WhiteElo "2441"]
[BlackElo "2313"]
[Result "0-1"]
[Round "8"]
[TimeControl "180+1"]
[Date "2023.08.01"]
[WhiteClock "0:00:18"]
[BlackClock "0:01:28"]
[Board "93"]

1. c4 {[%clk 0:03:00]}  Nf6 {[%clk 0:02:58]} 2. g3 {[%clk 0:03:00]}  g6 {[%clk 0:02:56]} 3. Bg2 {[%clk 0:03:00]}  Bg7 {[%clk 0:02:56]} 4. e4 {[%clk 0:03:00]}  e5 {[%clk 0:02:53]} 5. Nc3 {[%clk 0:03:00]}  d6 {[%clk 0:02:53]} 6. Nge2 {[%clk 0:02:59]}  O-O {[%clk 0:02:54]} 7. d3 {[%clk 0:02:58]}  c5 {[%clk 0:02:54]} 8. h3 {[%clk 0:02:58]}  Nc6 {[%clk 0:02:54]} 9. Rb1 {[%clk 0:02:57]}  Rb8 {[%clk 0:02:52]} 10. a3 {[%clk 0:02:56]}  a6 {[%clk 0:02:49]} 11. b4 {[%clk 0:02:55]}  cxb4 {[%clk 0:02:49]} 12. axb4 {[%clk 0:02:55]}  b5 {[%clk 0:02:50]} 13. cxb5 {[%clk 0:02:54]}  axb5 {[%clk 0:02:51]} 14. Be3 {[%clk 0:02:52]}  Be6 {[%clk 0:02:49]} 15. O-O {[%clk 0:02:49]}  d5 {[%clk 0:02:49]} 16. Bc5 {[%clk 0:02:48]}  Re8 {[%clk 0:02:48]} 17. exd5 {[%clk 0:02:41]}  Nxd5 {[%clk 0:02:46]} 18. Ne4 {[%clk 0:02:40]}  Bf8 {[%clk 0:02:33]} 19. Qc1 {[%clk 0:02:13]}  Bxc5 {[%clk 0:02:31]} 20. bxc5 {[%clk 0:02:10]}  b4 {[%clk 0:02:27]} 21. Qh6 {[%clk 0:02:06]}  f5 {[%clk 0:02:23]} 22. Nd6 {[%clk 0:01:58]}  Re7 {[%clk 0:02:21]} 23. f4 {[%clk 0:01:55]}  Nd4 {[%clk 0:02:09]} 24. Nxd4 {[%clk 0:01:36]}  exd4 {[%clk 0:02:10]} 25. Bxd5 {[%clk 0:01:19]}  Bxd5 {[%clk 0:02:09]} 26. Rfe1 {[%clk 0:01:18]}  b3 {[%clk 0:02:01]} 27. g4 {[%clk 0:00:52]}  b2 {[%clk 0:01:58]} 28. Kf2 {[%clk 0:00:35]}  Rxe1 {[%clk 0:01:55]} 29. Rxe1 {[%clk 0:00:34]}  b1=Q {[%clk 0:01:50]} 30. Rxb1 {[%clk 0:00:30]}  Rxb1 {[%clk 0:01:49]} 31. gxf5 {[%clk 0:00:31]}  Rb2+ {[%clk 0:01:45]} 32. Kf1 {[%clk 0:00:18]}  Qa5 {[%clk 0:01:28]} 0-1


[Site "https://www.chess.com"]

[Event "Titled Tuesday Blitz August 1 Late 2023"]
[White "Pein, Malcolm"]
[Black "Sathish, Pranav"]
[WhiteFideId "400289"]
[BlackFideId "30967538"]
[WhiteElo "2302"]
[BlackElo "2436"]
[Result "0-1"]
[Round "8"]
[TimeControl "180+1"]
[Date "2023.08.01"]
[WhiteClock "0:00:00"]
[BlackClock "0:01:15"]
[Board "94"]

1. d4 {[%clk 0:00:45]}  d5 {[%clk 0:02:56]} 2. c4 {[%clk 0:00:44]}  c6 {[%clk 0:02:54]} 3. Nf3 {[%clk 0:00:44]}  Nf6 {[%clk 0:02:52]} 4. Nc3 {[%clk 0:00:44]}  dxc4 {[%clk 0:02:52]} 5. e4 {[%clk 0:00:45]}  b5 {[%clk 0:02:52]} 6. e5 {[%clk 0:00:45]}  Nd5 {[%clk 0:02:51]} 7. Be2 {[%clk 0:00:45]}  Bb7 {[%clk 0:02:49]} 8. Ng5 {[%clk 0:00:44]}  e6 {[%clk 0:02:47]} 9. O-O {[%clk 0:00:44]}  Be7 {[%clk 0:02:46]} 10. Nce4 {[%clk 0:00:42]}  h6 {[%clk 0:02:43]} 11. Nf3 {[%clk 0:00:41]}  O-O {[%clk 0:02:41]} 12. Re1 {[%clk 0:00:40]}  Nd7 {[%clk 0:02:39]} 13. a3 {[%clk 0:00:39]}  c5 {[%clk 0:02:39]} 14. a4 {[%clk 0:00:37]}  a6 {[%clk 0:02:37]} 15. Qc2 {[%clk 0:00:35]}  cxd4 {[%clk 0:02:36]} 16. Nxd4 {[%clk 0:00:31]}  Qb6 {[%clk 0:02:25]} 17. Nf3 {[%clk 0:00:24]}  Nc5 {[%clk 0:02:18]} 18. Nd6 {[%clk 0:00:18]}  Bxd6 {[%clk 0:02:14]} 19. a5 {[%clk 0:00:17]}  Qd8 {[%clk 0:02:11]} 20. exd6 {[%clk 0:00:17]}  Nb3 {[%clk 0:02:11]} 21. Rb1 {[%clk 0:00:15]}  Qxd6 {[%clk 0:02:11]} 22. Qe4 {[%clk 0:00:13]}  Nc5 {[%clk 0:02:01]} 23. Qg4 {[%clk 0:00:11]}  Nf6 {[%clk 0:02:01]} 24. Qh4 {[%clk 0:00:10]}  Be4 {[%clk 0:01:51]} 25. Bxh6 {[%clk 0:00:08]}  Bxb1 {[%clk 0:01:44]} 26. Rxb1 {[%clk 0:00:09]}  gxh6 {[%clk 0:01:39]} 27. Qxf6 {[%clk 0:00:08]}  Kh7 {[%clk 0:01:34]} 28. Bd1 {[%clk 0:00:06]}  Qd8 {[%clk 0:01:33]} 29. Qe5 {[%clk 0:00:05]}  Nd3 {[%clk 0:01:32]} 30. Bc2 {[%clk 0:00:04]}  Qd5 {[%clk 0:01:29]} 31. Qg3 {[%clk 0:00:01]}  Rg8 {[%clk 0:01:24]} 32. Qh3 {[%clk 0:00:01]}  Rg6 {[%clk 0:01:22]} 33. Rd1 {[%clk 0:00:02]}  Rag8 {[%clk 0:01:21]} 34. Nh4 {[%clk 0:00:00]}  Qh5 {[%clk 0:01:15]} 0-1


[Site "https://www.chess.com"]

[Event "Titled Tuesday Blitz August 1 Late 2023"]
[White "FuenfgegenWilly"]
[Black "Thiel, Thomas"]
[BlackFideId "4615964"]
[WhiteElo "2431"]
[BlackElo "2279"]
[Result "1-0"]
[Round "8"]
[TimeControl "180+1"]
[Date "2023.08.01"]
[WhiteClock "0:00:36"]
[BlackClock "0:00:00"]
[Board "96"]

1. e4 {[%clk 0:02:53]}  d5 {[%clk 0:02:59]} 2. exd5 {[%clk 0:02:53]}  Nf6 {[%clk 0:02:59]} 3. Nc3 {[%clk 0:02:53]}  Nxd5 {[%clk 0:02:58]} 4. Bc4 {[%clk 0:02:49]}  Nb6 {[%clk 0:02:55]} 5. Bb3 {[%clk 0:02:49]}  Nc6 {[%clk 0:02:55]} 6. Nf3 {[%clk 0:02:50]}  Bf5 {[%clk 0:02:55]} 7. h3 {[%clk 0:02:48]}  e6 {[%clk 0:02:55]} 8. d3 {[%clk 0:02:45]}  Be7 {[%clk 0:02:55]} 9. a4 {[%clk 0:02:45]}  a5 {[%clk 0:02:53]} 10. Nb5 {[%clk 0:02:42]}  O-O {[%clk 0:02:50]} 11. Bf4 {[%clk 0:02:41]}  Rc8 {[%clk 0:02:45]} 12. Qe2 {[%clk 0:02:41]}  Nd5 {[%clk 0:02:41]} 13. Bd2 {[%clk 0:02:40]}  Bf6 {[%clk 0:02:37]} 14. c3 {[%clk 0:02:38]}  Nce7 {[%clk 0:02:19]} 15. g4 {[%clk 0:02:38]}  Bg6 {[%clk 0:02:17]} 16. g5 {[%clk 0:02:38]}  c6 {[%clk 0:02:09]} 17. gxf6 {[%clk 0:02:37]}  Nxf6 {[%clk 0:02:07]} 18. Nbd4 {[%clk 0:02:32]}  c5 {[%clk 0:02:07]} 19. Nb5 {[%clk 0:02:32]}  Bxd3 {[%clk 0:02:05]} 20. Qe3 {[%clk 0:02:33]}  c4 {[%clk 0:02:04]} 21. Bd1 {[%clk 0:02:33]}  Ned5 {[%clk 0:02:02]} 22. Qg5 {[%clk 0:02:31]}  h6 {[%clk 0:01:53]} 23. Qg3 {[%clk 0:02:28]}  Ne4 {[%clk 0:01:51]} 24. Qe5 {[%clk 0:02:21]}  Rc5 {[%clk 0:01:31]} 25. Rg1 {[%clk 0:02:18]}  Ndf6 {[%clk 0:01:27]} 26. Qf4 {[%clk 0:02:14]}  Nxd2 {[%clk 0:01:10]} 27. Nxd2 {[%clk 0:02:07]}  Kh8 {[%clk 0:01:06]} 28. Bf3 {[%clk 0:02:02]}  Rf5 {[%clk 0:01:02]} 29. Qg3 {[%clk 0:02:01]}  g6 {[%clk 0:00:59]} 30. Nd4 {[%clk 0:01:56]}  Rg5 {[%clk 0:00:57]} 31. Qh2 {[%clk 0:01:55]}  Qb8 {[%clk 0:00:52]} 32. Qh1 {[%clk 0:01:44]}  Qe5+ {[%clk 0:00:49]} 33. Kd1 {[%clk 0:01:38]}  Qf4 {[%clk 0:00:34]} 34. Rxg5 {[%clk 0:01:32]}  hxg5 {[%clk 0:00:31]} 35. Be2 {[%clk 0:01:22]}  e5 {[%clk 0:00:29]} 36. Bxd3 {[%clk 0:01:17]}  cxd3 {[%clk 0:00:30]} 37. Nb5 {[%clk 0:01:00]}  Qxf2 {[%clk 0:00:28]} 38. Qf1 {[%clk 0:00:55]}  Qb6 {[%clk 0:00:19]} 39. Qxd3 {[%clk 0:00:52]}  Rd8 {[%clk 0:00:19]} 40. Qe2 {[%clk 0:00:52]}  e4 {[%clk 0:00:17]} 41. Kc2 {[%clk 0:00:51]}  e3 {[%clk 0:00:15]} 42. Nc4 {[%clk 0:00:52]}  Qe6 {[%clk 0:00:11]} 43. Nd4 {[%clk 0:00:43]}  Qe4+ {[%clk 0:00:08]} 44. Qd3 {[%clk 0:00:43]}  Qg2+ {[%clk 0:00:08]} 45. Kb3 {[%clk 0:00:43]}  Nd5 {[%clk 0:00:05]} 46. Re1 {[%clk 0:00:39]}  Qxh3 {[%clk 0:00:00]} 47. Nxe3 {[%clk 0:00:36]} 1-0


[Site "https://www.chess.com"]